bitfinex/quotes_ETHUSD_20210401
["timestamp","ask_amount","ask_price","bid_price","bid_amount"]
[1617244390020,0.2819,1930.4,1930.3,58.78557596]
[1617244390221,3.8319,1930.4,1930.3,58.78557596]
[1617244391221,3.7819,1930.4,1930.3,58.78557596]
[1617244391421,3.7819,1930.4,1930.3,61.78557596]
[1617244393029,1.8923,1930.4,1930.3,53.48477912]
[1617244393247,1.8923,1930.4,1930.3,61.78557596]
[1617244394248,0.8923,1930.4,1930.3,61.78557596]
[1617244395248,0.8923,1930.4,1930.3,58.37557596]
[1617244395449,4.4423,1930.4,1930.3,50.07477912]
[1617244395876,4.4423,1930.4,1930.3,49.78777912]
[1617244396075,2.605,1930.4,1930.3,51.00217912]
[1617244396275,2.605,1930.4,1930.3,52.18297912]
[1617244398901,0.7603,1930.4,1930.3,52.18297912]
[1617244399100,0.7603,1930.4,1930.3,60.48377596]
[1617244399301,23.91650959,1930.7,1930.4,17.95]
[1617244399502,23.91650959,1930.7,1930.6,7.06]
[1617244399701,23.91650959,1930.7,1930.6,12.07]
[1617244399917,23.91650959,1930.7,1930.6,9.28]
[1617244400310,23.91650959,1930.7,1930.6,11.37621881]
[1617244401121,27.46650959,1930.7,1930.6,19.13913881]
[1617244402125,25.62630959,1930.7,1930.6,19.13913881]
[1617244402722,25.62630959,1930.7,1930.6,19.25550481]
[1617244402922,25.57630959,1930.7,1930.6,19.25550481]
[1617244404373,25.57630959,1930.7,1930.6,16.749286]
[1617244404972,23.73540959,1930.7,1930.6,16.749286]
[1617244405973,23.73540959,1930.7,1930.6,17.159286]
[1617244406373,27.28540959,1930.7,1930.6,17.159286]
[1617244407974,25.43980959,1930.7,1930.6,17.159286]
[1617244408375,24.43980959,1930.7,1930.6,17.159286]
[1617244410794,24.43980959,1930.7,1930.6,16.749286]
[1617244410998,22.60090959,1930.7,1930.6,24.867686]
[1617244411195,22.60090959,1930.7,1930.6,25.247686]
[1617244411398,26.09490959,1930.7,1930.6,25.247686]
[1617244413430,25.09490959,1930.7,1930.6,24.867686]
[1617244414034,25.09490959,1930.7,1930.6,25.267686]
[1617244414254,21.29320959,1930.7,1930.6,25.267686]
[1617244416055,21.29320959,1930.7,1930.6,24.867686]
[1617244416657,24.84320959,1930.7,1930.6,24.867686]
[1617244417275,24.82200959,1930.7,1930.6,24.867686]
[1617244418475,24.72800959,1930.7,1930.6,24.867686]
[1617244420337,22.89890959,1930.7,1930.6,24.867686]
[1617244421741,26.44890959,1930.7,1930.6,24.587686]
[1617244421946,28.23858931,1930.7,1930.6,11.459286]
[1617244422145,28.37858931,1930.7,1930.6,11.459286]
[1617244422345,28.37858931,1930.7,1930.6,7.879286]
[1617244422346,26.58890959,1930.7,1930.6,7.879286]
[1617244423348,25.94740959,1930.7,1930.6,7.879286]
[1617244423548,24.74740959,1930.7,1930.6,0.116366]
[1617244423747,25.94740959,1930.7,1930.6,0.116366]
[1617244424147,24.60740959,1930.7,1930.6,0.116366]
[1617244425955,24.60740959,1930.7,1930.6,7.881186]
[1617244426155,24.60740959,1930.7,1930.6,11.401186]
[1617244426356,22.76560959,1930.7,1930.6,11.401186]
[1617244426956,26.31560959,1930.7,1930.6,11.401186]
[1617244429185,26.31560959,1930.7,1930.6,19.401186]
[1617244429385,24.47380959,1930.7,1930.6,19.401186]
[1617244432241,28.02380959,1930.7,1930.6,11.401186]
[1617244432446,26.18450959,1930.7,1930.6,11.401186]
[1617244433445,26.18450959,1930.7,1930.6,19.401186]
[1617244434045,26.18450959,1930.7,1930.6,19.636186]
[1617244435279,24.34420959,1930.7,1930.6,19.916186]
[1617244436682,24.34420959,1930.7,1930.6,19.636186]
[1617244437282,24.34420959,1930.7,1930.6,19.916186]
[1617244437483,27.89420959,1930.7,1930.6,19.916186]
[1617244438483,26.05630959,1930.7,1930.6,19.916186]
[1617244439083,26.05630959,1930.7,1930.6,20.03671998]
[1617244441303,24.21810959,1930.7,1930.6,20.03671998]
[1617244442707,27.76810959,1930.7,1930.6,20.03671998]
[1617244444332,25.92750959,1930.7,1930.6,20.03671998]
[1617244447357,24.08950959,1930.7,1930.6,20.03671998]
[1617244447559,24.08950959,1930.7,1930.6,20.44671998]
[1617244447958,27.63950959,1930.7,1930.6,20.44671998]
[1617244448605,27.63950959,1930.7,1930.6,20.03671998]
[1617244450408,25.79860959,1930.7,1930.6,20.03671998]
[1617244453214,29.34860959,1930.7,1930.6,20.03671998]
[1617244453415,27.51120959,1930.7,1930.6,20.42671998]
[1617244455237,27.51120959,1930.7,1930.6,20.03671998]
[1617244456557,25.55300959,1930.7,1930.6,20.03671998]
[1617244457759,25.55300959,1930.7,1930.6,20.42671998]
[1617244458359,29.10300959,1930.7,1930.6,20.42671998]
[1617244459582,28.4,1930.7,1930.6,20.42671998]
[1617244459783,27.26010959,1930.7,1930.6,20.42671998]
[1617244460186,27.26010959,1930.7,1930.6,21.62671998]
[1617244460383,27.26010959,1930.7,1930.6,25.39361998]
[1617244460783,27.26010959,1930.7,1930.6,44.54441682]
[1617244460982,27.26010959,1930.7,1930.6,44.82441682]
[1617244462412,26.26010959,1930.7,1930.6,44.82441682]
[1617244462813,24.41830959,1930.7,1930.6,44.82441682]
[1617244463613,27.96830959,1930.7,1930.6,44.82441682]
[1617244464232,27.96830959,1930.7,1930.6,33.97441682]
[1617244464431,27.96830959,1930.7,1930.6,25.67361998]
[1617244464831,27.96830959,1930.7,1930.6,40.67441682]
[1617244465433,27.96830959,1930.7,1930.6,32.37361998]
[1617244465633,26.12300959,1930.7,1930.6,25.67361998]
[1617244466034,26.12300959,1930.7,1930.6,22.67361998]
[1617244466234,26.12300959,1930.7,1930.6,21.62671998]
[1617244467457,25.12300959,1930.7,1930.6,30.72671998]
[1617244468058,25.12300959,1930.7,1930.6,21.62671998]
[1617244468659,23.28070959,1930.7,1930.6,21.62671998]
[1617244468860,26.83070959,1930.7,1930.6,21.62671998]
[1617244471687,24.98440959,1930.7,1930.6,21.62671998]
[1617244471910,24.98440959,1930.7,1930.6,21.23671998]
[1617244472511,23.98440959,1930.7,1930.6,21.63671998]
[1617244473512,23.98440959,1930.7,1930.6,19.75671998]
[1617244473713,24.12440959,1930.7,1930.6,19.75671998]
[1617244474111,27.67440959,1930.7,1930.6,19.75671998]
[1617244474314,27.67440959,1930.7,1930.6,16.23671998]
[1617244474536,27.67440959,1930.7,1930.6,8.23671998]
[1617244474736,25.69010959,1930.7,1930.6,8.23671998]
[1617244474959,25.69010959,1930.7,1930.6,11.01671998]
[1617244475365,25.69010959,1930.7,1930.6,8.23671998]
[1617244475762,26.10010959,1930.7,1930.6,0.47189998]
[1617244476561,25.69010959,1930.7,1930.6,0.47189998]
[1617244477562,24.69010959,1930.7,1930.6,0.47189998]
[1617244477767,22.85190959,1930.7,1930.6,5.48189998]
[1617244477962,22.85190959,1930.7,1930.6,0.47189998]
[1617244478163,22.85190959,1930.7,1930.6,11.78379662]
[1617244478364,22.85190959,1930.7,1930.6,15.90379662]
[1617244478563,22.85190959,1930.7,1930.6,23.90379662]
[1617244478965,22.85190959,1930.7,1930.6,20.63495998]
[1617244479362,26.40190959,1930.7,1930.6,20.63495998]
[1617244480445,26.14293659,1930.7,1930.6,20.63495998]
[1617244480845,24.30133659,1930.7,1930.6,20.63495998]
[1617244481645,24.30133659,1930.7,1930.6,21.04495998]
[1617244481848,24.30133659,1930.7,1930.6,22.24495998]
[1617244482250,24.30133659,1930.7,1930.6,30.54575682]
[1617244482446,23.30133659,1930.7,1930.6,36.54575682]
[1617244482646,23.30133659,1930.7,1930.6,30.54575682]
[1617244483849,21.45883659,1930.7,1930.6,30.54575682]
[1617244484452,21.45883659,1930.7,1930.6,28.93575682]
[1617244484652,25.00883659,1930.7,1930.6,28.93575682]
[1617244484853,25.00883659,1930.7,1930.6,20.63495998]
[1617244486052,25.00883659,1930.7,1930.6,21.03495998]
[1617244486252,25.00883659,1930.7,1930.6,29.33575682]
[1617244486452,25.00883659,1930.7,1930.6,21.03495998]
[1617244486851,23.16953659,1930.7,1930.6,20.63495998]
[1617244487052,23.16953659,1930.7,1930.6,21.01495998]
[1617244487458,35.16953659,1930.7,1930.6,21.01495998]
[1617244488270,35.16953659,1930.7,1930.6,20.63495998]
[1617244489271,35.16953659,1930.7,1930.6,21.02495998]
[1617244489871,36.87903659,1930.7,1930.6,20.63495998]
[1617244491491,36.87903659,1930.7,1930.6,21.02495998]
[1617244491691,36.87903659,1930.7,1930.6,20.63495998]
[1617244492492,35.87903659,1930.7,1930.6,20.63495998]
[1617244492910,34.03443659,1930.7,1930.6,20.63495998]
[1617244494913,37.58443659,1930.7,1930.6,20.63495998]
[1617244495756,35.74583659,1930.7,1930.6,20.63495998]
[1617244497559,34.89583659,1930.7,1930.6,20.63495998]
[1617244498959,33.05673659,1930.7,1930.6,20.35495998]
[1617244499358,33.05673659,1930.7,1930.6,20.63495998]
[1617244500158,36.60673659,1930.7,1930.6,20.63495998]
[1617244501988,34.74733659,1930.7,1930.6,20.63495998]
[1617244504027,34.74733659,1930.7,1930.6,21.65836708]
[1617244504227,34.74733659,1930.7,1930.6,20.63495998]
[1617244504428,34.72666704,1930.7,1930.6,20.63495998]
[1617244504629,33.72666704,1930.7,1930.6,20.63495998]
[1617244504831,33.72666704,1930.7,1930.6,12.35495998]
[1617244504832,32.02546704,1930.7,1930.6,12.35495998]
[1617244505031,32.41546704,1930.7,1930.6,4.59189998]
[1617244505231,35.96546704,1930.7,1930.6,0.47189998]
[1617244505632,37.16546704,1930.7,1930.6,0.47189998]
[1617244506063,38.84842412,1930.7,1930.6,0.47189998]
[1617244506463,37.16546704,1930.7,1930.6,0.47189998]
[1617244506664,37.16546704,1930.7,1930.6,0.351366]
[1617244509471,36.16546704,1930.7,1930.6,0.351366]
[1617244510474,39.71546704,1930.7,1930.6,0.351366]
[1617244510871,37.87586704,1930.7,1930.6,0.351366]
[1617244513914,36.03726704,1930.7,1930.6,0.351366]
[1617244514517,35.03726704,1930.7,1930.6,0.351366]
[1617244515116,34.64726704,1930.7,1930.6,0.351366]
[1617244515717,38.19726704,1930.7,1930.6,0.351366]
[1617244515917,38.05726704,1930.7,1930.6,0.351366]
[1617244516943,36.21886704,1930.7,1930.6,0.351366]
[1617244518543,35.01886704,1930.7,1930.6,0.351366]
[1617244519163,35.01886704,1930.7,1930.6,5.361366]
[1617244519566,34.01886704,1930.7,1930.6,5.361366]
[1617244519993,32.17526704,1930.7,1930.6,5.361366]
[1617244521193,35.72526704,1930.7,1930.6,5.361366]
[1617244521395,35.72526704,1930.7,1930.6,0.351366]
[1617244522395,36.92526704,1930.7,1930.6,0.351366]
[1617244522996,35.07446704,1930.7,1930.6,0.351366]
[1617244524622,34.07446704,1930.7,1930.6,0.351366]
[1617244526017,32.23206704,1930.7,1930.6,0.351366]
[1617244526418,34.58206704,1930.7,1930.6,0.351366]
[1617244529048,32.74056704,1930.7,1930.6,0.351366]
[1617244529247,33.94056704,1930.7,1930.6,0.351366]
[1617244529451,33.74056704,1930.7,1930.6,0.351366]
[1617244529670,33.60056704,1930.7,1930.6,0.351366]
[1617244529871,32.40056704,1930.7,1930.6,0.351366]
[1617244531071,33.60056704,1930.7,1930.6,0.351366]
[1617244531471,37.15056704,1930.7,1930.6,0.351366]
[1617244532076,35.31286704,1930.7,1930.6,0.351366]
[1617244533099,34.11286704,1930.7,1930.6,0.351366]
[1617244534299,34.11286704,1930.7,1930.6,8.115176]
[1617244535025,32.26646704,1930.7,1930.6,8.115176]
[1617244536826,35.81646704,1930.7,1930.6,8.115176]
[1617244537847,35.76259904,1930.7,1930.6,8.115176]
[1617244538050,33.92539904,1930.7,1930.6,16.115176]
[1617244538247,33.92539904,1930.7,1930.6,8.115176]
[1617244538447,33.92539904,1930.7,1930.6,8.395176]
[1617244538647,33.92539904,1930.7,1930.6,16.395176]
[1617244538848,33.92539904,1930.7,1930.6,8.395176]
[1617244539047,33.92539904,1930.7,1930.6,21.405176]
[1617244539248,33.92539904,1930.7,1930.6,24.665176]
[1617244539851,33.92539904,1930.7,1930.6,16.385176]
[1617244540469,33.92539904,1930.7,1930.6,8.115176]
[1617244540870,33.92539904,1930.7,1930.6,0.351366]
[1617244541069,32.08079904,1930.7,1930.6,0.351366]
[1617244541870,32.08079904,1930.7,1930.6,8.775286]
[1617244542071,35.63079904,1930.7,1930.6,13.785286]
[1617244542474,35.63079904,1930.7,1930.6,21.785286]
[1617244542671,35.63079904,1930.7,1930.6,24.665286]
[1617244544096,33.79159904,1930.7,1930.6,24.665286]
[1617244547120,31.95009904,1930.7,1930.6,24.665286]
[1617244547321,35.50009904,1930.7,1930.6,24.665286]
[1617244549743,35.50009904,1930.7,1930.6,19.375286]
[1617244549944,35.50009904,1930.7,1930.6,11.375286]
[1617244550144,33.65999904,1930.7,1930.6,11.375286]
[1617244550769,33.65999904,1930.7,1930.6,8.115286]
[1617244550967,33.65999904,1930.7,1930.6,0.351366]
[1617244551375,33.65999904,1930.7,1930.6,8.115426]
[1617244552469,37.20999904,1930.7,1930.6,8.115426]
[1617244552873,37.20999904,1930.7,1930.6,16.115426]
[1617244553071,35.36959904,1930.7,1930.6,16.115426]
[1617244554315,35.36959904,1930.7,1930.6,12.075426]
[1617244555318,35.36959904,1930.7,1930.6,20.355426]
[1617244555717,35.36959904,1930.7,1930.6,25.365426]
[1617244556119,33.52939904,1930.7,1930.6,25.365426]
[1617244556320,33.52939904,1930.7,1930.6,25.085426]
[1617244556717,33.52939904,1930.7,1930.6,25.365426]
[1617244557717,37.07939904,1930.7,1930.6,25.365426]
[1617244558318,37.07939904,1930.7,1930.6,21.405426]
[1617244558746,37.07939904,1930.7,1930.6,13.641366]
[1617244558946,37.21939904,1930.7,1930.6,5.361366]
[1617244559147,35.78909904,1930.7,1930.6,0.351366]
[1617244561171,35.37909904,1930.7,1930.6,0.351366]
[1617244561774,35.23909904,1930.7,1930.6,0.631366]
[1617244562171,33.40109904,1930.7,1930.6,0.631366]
[1617244562373,33.40109904,1930.7,1930.6,5.59685673]
[1617244562973,36.95109904,1930.7,1930.6,5.59685673]
[1617244563173,36.95109904,1930.7,1930.6,13.36055673]
[1617244563377,36.95109904,1930.7,1930.6,16.56055673]
[1617244563574,36.95109904,1930.7,1930.6,11.27055673]
[1617244563796,36.95109904,1930.7,1930.6,8.35055673]
[1617244564601,36.95109904,1930.7,1930.6,8.73055673]
[1617244564602,35.95109904,1930.7,1930.6,8.73055673]
[1617244564799,35.95109904,1930.7,1930.6,19.81755673]
[1617244565039,35.95109904,1930.7,1930.6,13.01755673]
[1617244565231,34.11199904,1930.7,1930.6,21.01755673]
[1617244565432,34.11199904,1930.7,1930.6,19.81755673]
[1617244565831,34.11199904,1930.7,1930.6,19.86206246]
[1617244566845,34.11199904,1930.7,1930.6,21.06206246]
[1617244567045,34.11199904,1930.7,1930.6,19.86206246]
[1617244567846,34.11199904,1930.7,1930.6,19.85506246]
[1617244568247,35.82079904,1930.7,1930.6,19.85506246]
[1617244569652,34.82079904,1930.7,1930.6,19.85506246]
[1617244571251,32.97929904,1930.7,1930.6,19.85506246]
[1617244572072,32.97929904,1930.7,1930.6,21.05506246]
[1617244573471,36.52929904,1930.7,1930.6,21.05506246]
[1617244574298,34.69189904,1930.7,1930.6,21.05506246]
[1617244574699,33.69189904,1930.7,1930.6,21.05506246]
[1617244575499,33.69189904,1930.7,1930.6,28.85506246]
[1617244575701,33.69189904,1930.7,1930.6,30.39750955]
[1617244575899,33.69189904,1930.7,1930.6,21.05506246]
[1617244577132,33.69189904,1930.7,1930.6,22.55605877]
[1617244577332,33.69189904,1930.7,1930.6,33.95605877]
[1617244577333,31.85229904,1930.7,1930.6,33.95605877]
[1617244577532,31.85229904,1930.7,1930.6,32.45506246]
[1617244577932,31.85229904,1930.7,1930.6,21.05506246]
[1617244578334,31.85229904,1930.7,1930.6,22.34218351]
[1617244578533,31.85229904,1930.7,1930.6,41.04298035]
[1617244578733,35.40229904,1930.7,1930.6,39.7558593]
[1617244579139,35.40229904,1930.7,1930.6,43.90096179]
[1617244579335,10.65,1930.7,1930.6,65.75796179]
[1617244579556,12.84483758,1930.8,1930.7,40.10079684]
[1617244579557,9.7785591,1930.8,1930.7,40.10079684]
[1617244579754,8.7785591,1930.8,1930.7,66.67899684]
[1617244579954,8.7785591,1930.8,1930.7,69.67899684]
[1617244580154,7.1562127,1930.8,1930.7,69.67899684]
[1617244580354,5.3065127,1930.8,1930.7,69.96599684]
[1617244580957,3.6841663,1930.8,1930.7,69.96599684]
[1617244581161,3.6841663,1930.8,1930.7,77.72516684]
[1617244581557,2.0618199,1930.8,1930.7,77.72516684]
[1617244582194,16.1993,1930.9,1930.8,2.94760286]
[1617244582394,16.1993,1930.9,1930.8,51.26760286]
[1617244582595,16.1993,1930.9,1930.8,59.5683997]
[1617244583398,14.3549,1930.9,1930.8,59.5683997]
[1617244584099,14.3549,1930.9,1930.8,67.3273597]
[1617244584303,17.9049,1930.9,1930.8,67.44370803]
[1617244584599,17.0449,1930.9,1930.8,67.44370803]
[1617244585200,17.0449,1930.9,1930.8,25.24370803]
[1617244585401,17.0449,1930.9,1930.8,22.82656286]
[1617244585599,17.0449,1930.9,1930.8,11.90656286]
[1617244585800,17.0449,1930.9,1930.8,12.48106148]
[1617244586401,15.2012,1930.9,1930.8,28.18106148]
[1617244586601,15.2012,1930.9,1930.8,33.48106148]
[1617244587201,15.2012,1930.9,1930.8,41.48106148]
[1617244587627,15.2012,1930.9,1930.8,25.78106148]
[1617244589431,16.9123,1930.9,1930.8,25.78106148]
[1617244590253,16.9123,1930.9,1930.8,25.89741334]
[1617244591656,16.3643,1930.9,1930.8,25.89741334]
[1617244592254,14.5236,1930.9,1930.8,25.89741334]
[1617244592880,14.5236,1930.9,1930.8,30.89741334]
[1617244594284,14.5236,1930.9,1930.8,22.53981048]
[1617244594483,14.5236,1930.9,1930.8,21.33981048]
[1617244594687,17.5736,1930.9,1930.8,21.33981048]
[1617244594882,17.5736,1930.9,1930.8,13.33981048]
[1617244595085,17.5736,1930.9,1930.8,8.03981048]
[1617244595301,15.7346,1930.9,1930.8,8.03981048]
[1617244596111,15.7346,1930.9,1930.8,8.31981048]
[1617244596307,15.7346,1930.9,1930.8,16.31981048]
[1617244596509,15.7346,1930.9,1930.8,11.33981048]
[1617244596707,15.7346,1930.9,1930.8,19.33981048]
[1617244596907,15.7346,1930.9,1930.8,19.05981048]
[1617244597108,15.7346,1930.9,1930.8,11.05981048]
[1617244598351,13.894,1930.9,1930.8,11.05981048]
[1617244598551,13.894,1930.9,1930.8,19.05981048]
[1617244598751,13.894,1930.9,1930.8,19.33981048]
[1617244600055,17.444,1930.9,1930.8,19.33981048]
[1617244601460,15.6043,1930.9,1930.8,19.33981048]
[1617244602068,25.407,1930.9,1930.8,19.05981048]
[1617244602465,25.407,1930.9,1930.8,16.03981048]
[1617244604479,23.1596,1930.9,1930.8,16.03981048]
[1617244605281,26.7096,1930.9,1930.8,16.03981048]
[1617244606506,26.7096,1930.9,1930.8,16.31981048]
[1617244607306,24.8713,1930.9,1930.8,16.31981048]
[1617244607709,24.8713,1930.9,1930.8,16.03981048]
[1617244608307,24.8713,1930.9,1930.8,16.31981048]
[1617244609738,24.3713,1930.9,1930.8,16.31981048]
[1617244610375,22.5324,1930.9,1930.8,16.31981048]
[1617244610571,26.0824,1930.9,1930.8,16.31981048]
[1617244610774,26.0824,1930.9,1930.8,16.03981048]
[1617244610972,26.0824,1930.9,1930.8,8.03981048]
[1617244612977,26.0824,1930.9,1930.8,8.31981048]
[1617244613373,26.0824,1930.9,1930.8,16.31981048]
[1617244613374,24.2446,1930.9,1930.8,16.31981048]
[1617244615790,27.7946,1930.9,1930.8,16.31981048]
[1617244616409,25.9553,1930.9,1930.8,16.31981048]
[1617244617210,25.9553,1930.9,1930.8,16.03981048]
[1617244617411,25.9553,1930.9,1930.8,8.03981048]
[1617244618412,25.9553,1930.9,1930.8,16.03981048]
[1617244619437,24.1158,1930.9,1930.8,16.03981048]
[1617244620840,24.1158,1930.9,1930.8,16.31981048]
[1617244621038,27.6658,1930.9,1930.8,16.31981048]
[1617244621861,27.6658,1930.9,1930.8,16.51561048]
[1617244622063,27.6658,1930.9,1930.8,16.23561048]
[1617244622265,27.6658,1930.9,1930.8,8.23561048]
[1617244622464,25.8274,1930.9,1930.8,16.51561048]
[1617244625493,23.9799,1930.9,1930.8,16.51561048]
[1617244626095,27.5299,1930.9,1930.8,16.51561048]
[1617244628514,25.6816,1930.9,1930.8,16.51561048]
[1617244631436,23.8434,1930.9,1930.8,16.51561048]
[1617244631637,27.3934,1930.9,1930.8,16.51561048]
[1617244632461,29.0034,1930.9,1930.8,8.23561048]
[1617244632662,30.58647128,1930.9,1930.8,0.47665048]
[1617244633061,29.0034,1930.9,1930.8,0.47665048]
[1617244633570,30.51107622,1930.9,1930.8,0.36030048]
[1617244633764,38.79211134,1930.7,1930.6,0.235]
[1617244633960,47.68290818,1930.7,1930.6,0.235]
[1617244634562,53.87281873,1930.7,1930.6,0.235]
[1617244634797,52.44925818,1930.7,1930.6,0.235]
[1617244634997,20.65925818,1930.7,1930.6,0.235]
[1617244635197,12.89290818,1930.7,1930.6,0.235]
[1617244635597,12.49290818,1930.7,1930.6,0.235]
[1617244635798,29.39290818,1930.7,1930.6,0.235]
[1617244636202,29.78290818,1930.7,1930.6,0.235]
[1617244636798,33.33290818,1930.7,1930.6,0.235]
[1617244637418,33.33290818,1930.7,1930.6,0.39742617]
[1617244637619,31.48240818,1930.7,1930.6,0.39742617]
[1617244639218,39.24833818,1930.7,1930.6,0.39742617]
[1617244640642,39.15574846,1930.7,1930.6,0.39742617]
[1617244641051,37.40683818,1930.7,1930.6,0.39742617]
[1617244642043,40.95683818,1930.7,1930.6,0.39742617]
[1617244646096,20.72472684,1930.7,1930.6,0.39742617]
[1617244647098,24.27472684,1930.7,1930.6,0.39742617]
[1617244647697,1.2,1930.5,1930.3,0.10616779]
[1617244647911,1.58,1930.5,1930.3,0.10616779]
[1617244648111,1.42605566,1930.5,1930.3,0.10616779]
[1617244648311,20.09,1930.6,1930.3,0.10616779]
[1617244648510,28.23601,1930.6,1930.3,0.10616779]
[1617244649515,26.6455341,1930.6,1930.3,0.10616779]
[1617244649713,26.2655341,1930.6,1930.3,0.10616779]
[1617244651167,26.2655341,1930.6,1930.4,0.1163766]
[1617244652371,28.6155341,1930.6,1930.4,0.1163766]
[1617244652571,20.8495241,1930.6,1930.4,0.1163766]
[1617244652969,1.2,1930.5,1930.4,0.1163766]
[1617244653190,1.2,1930.5,1930.3,0.50616779]
[1617244653379,1.34,1930.5,1930.3,0.10616779]
[1617244653979,0.14,1930.5,1930.3,0.10616779]
[1617244655580,25.57414297,1930.6,1930.3,0.51616779]
[1617244655814,0.14,1930.5,1930.3,0.51616779]
[1617244656816,0.14,1930.5,1930.3,0.63253025]
[1617244657015,0.14,1930.5,1930.3,0.22253025]
[1617244657616,3.69,1930.5,1930.3,0.22253025]
[1617244657816,10.35,1930.4,1930.3,0.22253025]
[1617244658619,8.5062,1930.4,1930.3,0.22253025]
[1617244660623,3.69,1930.5,1930.3,0.61253025]
[1617244661645,1.9897,1930.5,1930.3,0.61253025]
[1617244662648,1.9897,1930.5,1930.4,0.41]
[1617244662844,5.5397,1930.5,1930.4,0.41]
[1617244664267,5.5397,1930.5,1930.3,0.22253025]
[1617244664666,3.6929,1930.5,1930.3,0.22253025]
[1617244664868,1.8502,1930.5,1930.3,0.63253025]
[1617244666289,1.8502,1930.5,1930.3,0.22253025]
[1617244667489,1.8502,1930.5,1930.3,5.23253025]
[1617244667689,1.8303,1930.5,1930.3,0.22253025]
[1617244668090,5.3803,1930.5,1930.3,0.22253025]
[1617244668689,5.3803,1930.5,1930.3,5.89253025]
[1617244668916,5.3803,1930.5,1930.4,0.39]
[1617244669116,5.3803,1930.5,1930.3,5.23253025]
[1617244669315,5.3803,1930.5,1930.3,5.62253025]
[1617244669517,19.710646,1930.4,1930.3,0.22253025]
[1617244669915,19.56571753,1930.4,1930.3,0.22253025]
[1617244670126,18.5371171,1930.4,1930.3,0.22253025]
[1617244670321,16.75,1930.4,1930.3,0.22253025]
[1617244670524,24.6,1930.4,1930.3,0.22253025]
[1617244670722,24.29170417,1930.4,1930.3,0.22253025]
[1617244670921,24.29170417,1930.4,1930.3,0.11636246]
[1617244671538,22.7607,1930.4,1930.3,0.11636246]
[1617244672340,14.9107,1930.4,1930.3,0.11636246]
[1617244673342,18.4607,1930.4,1930.3,0.11636246]
[1617244673740,16.6186,1930.4,1930.3,0.11636246]
[1617244673941,22.6781,1930.4,1930.3,0.11636246]
[1617244676792,20.8365,1930.4,1930.3,0.11636246]
[1617244677993,14.777,1930.4,1930.3,0.11636246]
[1617244678396,18.82929636,1930.4,1930.3,0.11636246]
[1617244678593,22.37929636,1930.4,1930.3,0.11636246]
[1617244679824,20.54069636,1930.4,1930.3,0.11636246]
[1617244680629,7.1,1930.4,1930.3,0.50636246]
[1617244680827,7.1,1930.4,1930.3,1.98636246]
[1617244681033,7.1,1930.4,1930.3,7.6812684]
[1617244681228,7.1,1930.4,1930.3,4.70636246]
[1617244681431,7.1,1930.4,1930.3,18.12117246]
[1617244681629,7.1,1930.4,1930.3,21.58117246]
[1617244681830,6.1,1930.4,1930.3,21.58117246]
[1617244682248,0.92538,1930.4,1930.3,30.27797246]
[1617244682448,0.92538,1930.4,1930.3,47.08982927]
[1617244682651,1.13184,1930.5,1930.4,25.112]
[1617244682848,2.84114,1930.6,1930.4,43.08920207]
[1617244683047,2.84114,1930.6,1930.5,24.848]
[1617244683247,2.84114,1930.6,1930.5,31.0153495]
[1617244683847,6.39114,1930.6,1930.5,31.0153495]
[1617244684048,6.39114,1930.6,1930.5,20.8353495]
[1617244684249,6.39114,1930.6,1930.5,28.71281136]
[1617244685075,6.39114,1930.6,1930.5,20.71281136]
[1617244685682,6.39114,1930.6,1930.5,12.46481136]
[1617244685879,4.54864,1930.6,1930.5,13.12062243]
[1617244686281,4.54864,1930.6,1930.5,9.26062243]
[1617244686477,4.54864,1930.6,1930.5,8.06062243]
[1617244686678,4.54864,1930.6,1930.5,1.49951243]
[1617244686877,3.54864,1930.6,1930.5,0.29951243]
[1617244687714,3.54864,1930.6,1930.5,5.30951243]
[1617244687915,3.54864,1930.6,1930.5,6.50951243]
[1617244688716,3.54864,1930.6,1930.5,6.88951243]
[1617244688920,1.69064,1930.6,1930.5,10.18951243]
[1617244689115,5.24064,1930.6,1930.5,10.18951243]
[1617244689517,5.24064,1930.6,1930.5,17.95317243]
[1617244689920,5.24064,1930.6,1930.5,17.99517243]
[1617244690124,5.24064,1930.6,1930.5,25.99517243]
[1617244690320,5.24064,1930.6,1930.5,28.99517243]
[1617244691921,2.39774,1930.6,1930.5,28.99517243]
[1617244693342,2.39774,1930.6,1930.5,35.11826382]
[1617244694344,5.94774,1930.6,1930.5,35.11826382]
[1617244694945,4.10534,1930.6,1930.5,35.11826382]
[1617244696781,3.10534,1930.6,1930.5,35.11826382]
[1617244697995,1.26624,1930.6,1930.5,35.11826382]
[1617244699596,4.81624,1930.6,1930.5,35.11826382]
[1617244699796,4.81624,1930.6,1930.5,40.67546589]
[1617244701019,24.65,1930.7,1930.6,18.3]
[1617244701223,24.65,1930.7,1930.6,36.7132]
[1617244701417,24.65,1930.7,1930.6,36.6852]
[1617244701823,23.65,1930.7,1930.6,36.6852]
[1617244702419,8.13237,1930.7,1930.6,49.61756]
[1617244702820,8.13237,1930.7,1930.6,51.07456057]
[1617244703066,6.5100236,1930.7,1930.6,51.07456057]
[1617244703268,6.5100236,1930.7,1930.6,49.61756]
[1617244703667,21.3,1930.9,1930.8,34.05419817]
[1617244703869,21.3,1930.9,1930.8,52.25850024]
[1617244704066,19.4575,1930.9,1930.8,50.70430207]
[1617244704677,19.4575,1930.9,1930.8,51.09430207]
[1617244704870,23.0075,1930.9,1930.8,51.37430207]
[1617244705266,23.0075,1930.9,1930.8,59.13265207]
[1617244705869,23.0075,1930.9,1930.8,59.24898627]
[1617244706469,23.0075,1930.9,1930.8,27.94898627]
[1617244706870,22.0075,1930.9,1930.8,27.94898627]
[1617244707070,20.1636,1930.9,1930.8,22.93898627]
[1617244707470,20.1636,1930.9,1930.8,21.07188627]
[1617244707669,20.1636,1930.9,1930.8,21.35188627]
[1617244708071,20.03864724,1930.9,1930.8,21.35188627]
[1617244708898,20.03864724,1930.9,1930.8,15.7946842]
[1617244709099,20.03864724,1930.9,1930.8,31.73468627]
[1617244709299,20.03864724,1930.9,1930.8,38.51158627]
[1617244709700,20.03864724,1930.9,1930.8,38.12158627]
[1617244709904,18.20104724,1930.9,1930.8,38.12158627]
[1617244710100,21.75104724,1930.9,1930.8,36.96918627]
[1617244711522,21.75104724,1930.9,1930.8,28.96918627]
[1617244711722,21.75104724,1930.9,1930.8,16.6350842]
[1617244711922,20.75104724,1930.9,1930.8,15.7946842]
[1617244712923,18.91174724,1930.9,1930.8,29.35188627]
[1617244713123,18.91174724,1930.9,1930.8,21.35188627]